bitfinex/quotes_SOLUSD_20260102
["timestamp","ask_amount","ask_price","bid_price","bid_amount"]
[1767339064467,0.65873774,127.21,127.18,8.57567349]
[1767339064972,3.20850277,127.21,127.18,8.57567349]
[1767339065152,0.65873774,127.2,127.18,8.57567349]
[1767339072278,0.65873774,127.2,127.17,28.234184]
[1767339072578,0.65873774,127.17,127.15,7.86411586]
[1767339072956,0.65873774,127.16,127.14,7.86513485]
[1767339073371,0.65873774,127.16,127.15,7.8647267]
[1767339074486,0.65873774,127.16,127.14,7.86534528]
[1767339078181,0.65873774,127.14,127.11,0.2]
[1767339078399,2.71368991,127.13,127.11,0.2]
[1767339078788,0.65873774,127.13,127.11,0.2]
[1767339079105,2.05495217,127.14,127.11,0.91317174]
[1767339079388,2.71368991,127.14,127.11,0.91317174]
[1767339079796,2.71368991,127.14,127.11,8.78033769]
[1767339081719,2.71368991,127.14,127.11,0.91317174]
[1767339081929,2.71368991,127.13,127.11,0.2]
[1767339082225,2.05495217,127.12,127.11,0.2]
[1767339084920,2.71368991,127.13,127.11,0.2]
[1767339086312,0.70580652,127.11,127.09,0.2]
[1767339086518,2.76075869,127.1,127.07,8.73265529]
[1767339087502,2.76075869,127.1,127.08,14.36]
[1767339089343,0.70580652,127.1,127.08,14.36]
[1767339089541,2.76075869,127.1,127.08,14.36]
[1767339090747,2.05495217,127.09,127.05,15.99432315]
[1767339090949,2.05495217,127.07,127.05,15.99432315]
[1767339091246,2.05495217,127.07,127.05,16.65785044]
[1767339091747,2.05495217,127.06,127.05,15.99432315]
[1767339091922,132.33153929,127.13,127.05,15.99432315]
[1767339092116,2.05495217,127.07,127.05,15.99432315]
[1767339093352,2.05495217,127.06,127.05,15.99432315]
[1767339093647,2.05495217,127.06,127.04,0.2]
[1767339093821,2.05495217,127.05,127.02,0.66352729]
[1767339094021,2.05495217,127.04,127.02,0.66352729]
[1767339094436,7.86979843,127.07,127.0,0.66352729]
[1767339094437,2.05495217,127.03,127.0,0.66352729]
[1767339094639,2.05495217,127.03,126.99,14.36]
[1767339094640,2.05495217,127.02,126.99,22.23423447]
[1767339094848,2.05495217,127.02,127.0,0.66352729]
[1767339095345,2.05495217,127.03,127.0,0.66352729]
[1767339095727,2.05495217,127.04,127.01,0.66352729]
[1767339095927,2.05495217,127.04,127.0,8.53747953]
[1767339096142,2.05495217,127.03,127.0,8.53747953]
[1767339097448,7.86979843,127.07,127.0,8.53747953]
[1767339097656,2.05495217,127.03,127.0,8.53747953]
[1767339099631,2.05495217,127.03,127.0,7.87395224]
[1767339099840,7.87048385,127.06,127.0,7.87395224]
[1767339100049,2.05495217,127.02,127.0,7.87395224]
[1767339100378,2.05495217,127.03,127.0,8.53747953]
[1767339100555,7.86980103,127.07,127.01,0.66352729]
[1767339100730,2.05495217,127.03,127.01,0.66352729]
[1767339101237,2.05495217,127.04,127.01,0.66352729]
[1767339101438,2.05495217,127.04,127.01,8.53689864]
[1767339102550,2.05495217,127.03,127.0,22.25401574]
[1767339102931,2.05495217,127.03,127.0,22.91754303]
[1767339104054,7.86980103,127.07,127.01,8.53676893]
[1767339104262,2.05495217,127.04,127.02,0.66352729]
[1767339104460,2.05495217,127.04,127.01,7.87324164]
[1767339104666,2.05495217,127.04,127.01,8.53676893]
[1767339105045,2.05495217,127.05,127.01,8.53676893]
[1767339105366,2.05495217,127.06,127.03,0.66352729]
[1767339107767,2.05495217,127.06,127.03,8.53563844]
[1767339108063,7.86857693,127.09,127.03,8.53563844]
[1767339108280,2.05495217,127.06,127.03,8.53563844]
[1767339110973,7.86857693,127.09,127.03,8.53563844]
[1767339111269,2.05495217,127.06,127.03,8.53563844]
[1767339112470,7.86843968,127.09,127.0,14.38]
[1767339112677,2.05495217,127.08,127.0,0.66352729]
[1767339112876,2.05495217,127.03,127.0,8.53739206]
[1767339113067,2.05495217,127.04,127.01,7.87328781]
[1767339113251,2.05495217,127.05,127.02,8.5362339]
[1767339113857,9.92429979,127.08,127.02,8.5362339]
[1767339114064,2.05495217,127.05,127.02,8.5362339]
[1767339114266,2.05495217,127.05,127.02,0.66352729]
[1767339114465,2.05495217,127.04,127.02,0.66352729]
[1767339115268,2.05495217,127.03,127.01,0.66352729]
[1767339115471,29.59694694,127.08,127.01,0.66352729]
[1767339115674,2.05495217,127.03,127.01,0.66352729]
[1767339119581,2.05495217,127.04,127.01,0.66352729]
[1767339122092,2.05495217,127.03,127.01,0.66352729]
[1767339122389,2.05495217,127.03,127.01,8.53678457]
[1767339123068,7.87020589,127.07,127.01,8.53678457]
[1767339123271,2.05495217,127.03,127.01,8.53678457]
[1767339123774,2.05495217,127.04,127.01,8.53678457]
[1767339124792,24.30419701,127.08,127.02,0.70647334]
[1767339125006,7.86924484,127.08,127.02,0.70647334]
[1767339125166,2.05495217,127.05,127.02,0.70647334]
[1767339126796,9.92419701,127.08,127.02,0.70647334]
[1767339126981,2.05495217,127.05,127.02,0.70647334]
[1767339127699,7.86924484,127.08,127.02,0.70647334]
[1767339127898,2.05495217,127.05,127.03,0.70647334]
[1767339128279,2.05495217,127.04,127.01,8.57965011]
[1767339128681,2.05495217,127.04,127.02,0.70647334]
[1767339129600,2.05495217,127.04,127.02,7.87270629]
[1767339129814,2.05495217,127.04,127.03,0.70647334]
[1767339132394,2.05495217,127.04,127.01,7.87314571]
[1767339132714,2.05495217,127.04,127.02,0.70647334]
[1767339135495,7.86843968,127.09,127.03,0.70647334]
[1767339135697,2.05495217,127.05,127.03,0.70647334]
[1767339136512,3.21679741,127.05,127.03,0.70647334]
[1767339136811,3.21679741,127.08,126.99,0.70647334]
[1767339137007,3.21679741,127.02,126.99,0.70647334]
[1767339137404,7.86967813,127.07,126.99,0.70647334]
[1767339137597,3.21679741,127.04,127.0,0.70647334]
[1767339138711,3.21679741,127.04,127.02,0.70647334]
[1767339139513,7.86967813,127.07,127.02,0.70647334]
[1767339139713,3.21679741,127.04,127.02,0.70647334]
[1767339140709,7.86967813,127.07,127.0,7.87401574]
[1767339140893,3.21679741,127.05,127.01,0.70647334]
[1767339141714,3.93268833,127.05,127.01,0.70647334]
[1767339141917,3.93268833,127.04,127.01,8.57966612]
[1767339143219,3.21679741,127.03,127.01,8.57966612]
[1767339144793,0.71589092,127.04,127.01,8.57966612]
[1767339144992,3.21679741,127.03,127.01,8.57966612]
[1767339146305,3.21679741,127.03,127.01,7.87319278]
[1767339146306,0.71796451,127.02,127.01,7.87319278]
[1767339146610,3.93476192,127.04,127.01,8.58438424]
[1767339146919,3.21679741,127.04,127.01,8.58438424]
[1767339147217,0.71796451,127.03,127.01,8.58438424]
[1767339148015,3.93476192,127.04,127.01,8.58438424]
[1767339149816,3.21679741,127.03,127.01,8.58438424]
[1767339150393,3.93476192,127.04,127.01,8.58438424]
[1767339152521,0.71796451,127.04,127.01,8.58438424]
[1767339152820,3.93476192,127.04,127.01,8.58438424]
[1767339154322,0.71796451,127.04,127.01,8.58438424]
[1767339154512,3.93476192,127.04,127.01,8.58438424]
[1767339154715,0.71796451,127.04,127.01,8.58438424]
[1767339154912,3.93476192,127.04,127.01,8.58438424]
[1767339155522,3.93476192,127.03,127.0,8.58505056]
[1767339155820,3.93476192,127.03,127.0,7.8738591]
[1767339155994,3.93476192,127.03,127.01,0.71119146]
[1767339158621,3.21679741,127.03,127.01,0.71119146]
[1767339163930,3.93476192,127.04,127.01,0.71119146]
[1767339167142,0.71796451,127.04,127.01,0.71119146]
[1767339167332,3.93476192,127.04,127.01,0.71119146]
[1767339168315,3.21679741,127.03,127.01,0.71119146]
[1767339174944,3.93476192,127.03,127.01,0.71119146]
[1767339177940,3.21679741,127.03,127.01,0.71119146]
[1767339178245,3.87418353,127.03,127.01,0.71119146]
[1767339180343,3.21679741,127.03,126.98,3.41679741]
[1767339180535,3.21679741,127.01,126.99,15.10460223]
[1767339180725,3.21679741,127.01,126.99,0.72460223]
[1767339183731,3.87418353,127.02,126.99,0.72460223]
[1767339188843,3.87418353,127.02,126.99,8.59911598]
[1767339189538,3.87418353,127.0,126.98,0.2]
[1767339190359,0.65738612,127.0,126.98,0.2]
[1767339191354,3.87418353,127.0,126.98,0.2]
[1767339192861,0.65738612,127.0,126.98,0.2]
[1767339193058,7.87236816,127.03,126.98,8.79977279]
[1767339193059,0.65738612,127.03,126.98,8.79977279]
[1767339193250,3.87418353,127.0,126.98,8.79977279]
[1767339193558,0.65738612,127.0,126.98,8.79977279]
[1767339193947,3.87418353,127.01,126.98,8.79977279]
[1767339196472,2.06000255,127.01,126.99,0.72460223]
[1767339197069,2.06000255,127.01,126.98,8.07517056]
[1767339197249,2.06000255,126.99,126.95,0.72460223]
[1767339197449,2.71738867,126.98,126.95,0.72460223]
[1767339197650,2.71738867,126.98,126.95,8.60148279]
[1767339198874,0.65738612,126.98,126.95,8.60148279]
[1767339199355,0.65738612,126.98,126.96,0.72460223]
[1767339200174,0.65738612,126.98,126.96,8.60102653]
[1767339200377,0.65738612,126.97,126.94,8.60197927]
[1767339200566,2.71738867,126.97,126.94,8.60197927]
[1767339200772,2.71738867,126.97,126.94,22.98197927]
[1767339200974,2.71738867,126.96,126.93,22.98280727]
[1767339201666,2.71738867,126.96,126.94,8.60223174]
[1767339202879,2.71738867,126.96,126.92,8.60304039]
[1767339203080,2.71738867,126.95,126.93,14.38]
[1767339204371,2.71738867,126.96,126.93,15.10460223]
[1767339204780,2.71810331,126.95,126.93,15.10460223]
[1767339205681,0.65810076,126.95,126.93,22.98276471]
[1767339205977,0.70889817,126.96,126.93,22.98276471]
[1767339206277,2.06000255,126.97,126.94,0.65595362]
[1767339206658,2.76890072,126.97,126.94,0.65595362]
[1767339206889,112.67426475,127.0,126.93,22.25816248]
[1767339206890,104.8,127.0,126.95,2.06000255]
[1767339207055,2.06000255,126.99,126.96,0.65595362]
[1767339207261,0.70889817,126.99,126.96,0.65595362]
[1767339207571,2.76890072,126.99,126.96,0.65595362]
[1767339207774,0.70889817,126.98,126.96,8.53219432]
[1767339207965,0.70889817,126.98,126.96,7.8762407]
[1767339208264,2.76890072,126.98,126.96,7.8762407]
[1767339209085,0.70889817,126.97,126.95,7.87711697]
[1767339210085,2.06000255,126.98,126.95,8.53307059]
[1767339210276,2.76890072,126.98,126.95,8.53307059]
[1767339210900,0.70889817,126.98,126.95,8.53307059]
[1767339211104,104.8,127.04,126.96,2.06000255]
[1767339211306,104.8,127.04,126.97,0.65595362]
[1767339211772,2.06000255,127.01,126.97,2.06000255]
[1767339211971,2.06000255,127.01,126.98,0.65595362]
[1767339212376,104.8,127.04,126.98,0.65595362]
[1767339212592,2.06000255,127.01,126.98,0.65595362]
[1767339213206,0.70889817,127.0,126.98,7.87482728]
[1767339216606,104.8,127.04,126.98,8.5307809]
[1767339216903,2.06000255,127.02,126.98,10.59078345]
[1767339217097,2.06000255,127.02,126.98,8.5307809]
[1767339217288,2.06000255,127.02,126.98,10.59078345]
[1767339217708,2.06000255,127.02,126.98,8.5307809]
[1767339217999,2.06000255,127.02,126.99,0.65595362]
[1767339218591,2.57110438,127.02,126.99,0.65595362]
[1767339218984,2.57110438,127.02,126.99,8.53007958]
[1767339219900,0.51110183,127.02,126.99,8.53007958]
[1767339220087,2.06000255,127.01,126.99,8.53007958]
[1767339221491,2.06000255,127.01,126.99,7.87412596]
[1767339223109,2.57110438,127.02,126.99,0.65595362]
[1767339224007,0.51110183,127.02,126.99,0.65595362]
[1767339224206,2.57110438,127.02,126.99,0.65595362]
[1767339224388,0.51110183,127.02,126.99,0.65595362]
[1767339224587,2.57110438,127.02,126.99,0.65595362]
[1767339225098,2.57110438,127.02,126.99,8.53037421]
[1767339225299,2.06000255,127.03,127.0,0.65595362]
[1767339225815,2.57110438,127.03,127.0,0.65595362]
[1767339232518,0.51110183,127.03,127.0,0.65595362]
[1767339232701,2.57110438,127.03,127.0,0.65595362]
[1767339235126,0.51110183,127.02,126.99,9.93442314]
[1767339236004,2.57110438,127.03,127.0,0.6869787]
[1767339237226,0.51110183,127.03,127.0,0.6869787]
[1767339237427,2.57110438,127.03,127.0,0.6869787]
[1767339237727,0.51110183,127.03,127.0,8.56089843]
[1767339237925,0.51110183,127.03,127.0,10.62090098]
[1767339238110,0.51110183,127.03,127.0,9.93392228]
[1767339238315,2.57110438,127.04,127.01,0.6869787]
[1767339239632,0.51110183,127.04,127.01,0.6869787]
[1767339239926,2.57110438,127.04,127.01,0.6869787]
[1767339241527,2.06000255,127.04,127.01,7.87310296]
[1767339241707,0.51110183,127.06,127.02,0.6869787]
[1767339242030,2.06000255,127.04,127.02,0.6869787]
[1767339244131,0.51110183,127.05,127.02,0.6869787]
[1767339244334,2.06000255,127.04,127.02,0.6869787]
[1767339245429,0.51110183,127.05,127.02,0.6869787]
[1767339245613,2.57110438,127.05,127.02,0.6869787]
[1767339245813,0.51110183,127.05,127.02,0.6869787]
[1767339246130,2.57110438,127.05,127.02,0.6869787]
[1767339247527,0.51110183,127.06,127.02,2.06000255]
[1767339247846,2.06000255,127.05,127.03,0.6869787]
[1767339250650,0.51110183,127.06,127.03,0.6869787]
[1767339250958,2.06000255,127.05,127.03,0.6869787]
[1767339252458,2.06000255,127.04,127.03,0.6869787]
[1767339252838,2.06000255,127.05,127.03,0.6869787]
[1767339254735,0.51110183,127.06,127.03,0.6869787]
[1767339255059,2.06000255,127.05,127.03,0.6869787]
[1767339256664,3.2168399,127.05,127.03,0.6869787]
[1767339257363,3.72794173,127.05,127.02,8.55970002]
[1767339257961,3.72794173,127.05,127.03,0.6869787]
[1767339258768,3.2168399,127.05,127.03,0.6869787]
[1767339260760,3.75785355,127.05,127.03,0.65706688]
[1767339261155,3.2168399,127.05,127.03,0.65706688]
[1767339261448,3.78794173,127.04,127.01,14.38]
[1767339261774,3.2168399,127.03,127.01,14.38]
[1767339261939,3.78794173,127.04,127.01,22.25337106]
[1767339263261,3.78794173,127.04,127.01,22.94034976]
[1767339263464,3.78794173,127.04,127.01,22.25337106]
[1767339263654,3.78794173,127.04,127.02,0.6869787]
[1767339263962,3.2168399,127.04,127.02,0.6869787]
[1767339266264,0.57110183,127.05,127.02,0.6869787]
[1767339266463,3.2168399,127.04,127.02,0.6869787]
[1767339269303,0.57110183,127.05,127.02,0.6869787]
[1767339269444,3.2168399,127.04,127.02,0.6869787]
[1767339275065,3.78794173,127.05,127.02,0.6869787]
[1767339277477,0.57110183,127.05,127.02,0.6869787]
[1767339277656,3.78794173,127.08,127.04,0.68478775]
[1767339277860,3.2168399,127.08,127.04,0.65447777]
[1767339278148,3.2168399,127.07,127.04,0.65447777]
[1767339278370,3.81825171,127.07,127.04,0.65447777]
[1767339278762,3.81825171,127.07,127.04,3.2168399]
[1767339279073,3.2168399,127.07,127.04,3.2168399]
[1767339279263,3.2168399,127.07,127.04,17.5968399]
[1767339279464,3.2168399,127.07,127.04,14.38]
[1767339279982,3.2168399,127.07,127.05,0.68478775]
[1767339282057,0.6873141,127.12,127.06,0.68478775]
[1767339282267,3.904154,127.1,127.08,0.68478775]
[1767339282765,3.2168399,127.09,127.07,14.38]
[1767339282958,3.2168399,127.09,127.07,15.06478775]
[1767339285680,3.904154,127.09,127.06,8.55488633]
[1767339285855,3.904154,127.09,127.06,22.93488633]
[1767339286175,3.904154,127.09,127.06,15.06478775]
[1767339287377,3.904154,127.09,127.06,22.93501028]
[1767339288184,0.6873141,127.06,127.05,14.38]
[1767339288484,3.904154,127.06,127.03,8.55669508]
[1767339289884,0.6873141,127.06,127.03,8.55669508]
[1767339290083,3.904154,127.06,127.03,8.55669508]
[1767339291187,0.6873141,127.06,127.03,8.55669508]
[1767339291366,3.904154,127.06,127.03,8.55669508]
[1767339292486,3.904154,127.06,127.03,7.87190733]
[1767339292693,3.904154,127.06,127.04,0.68478775]
[1767339294469,3.904154,127.06,127.03,7.87190733]
[1767339294470,3.904154,127.05,127.02,0.68478775]
[1767339294669,3.2168399,127.04,127.02,0.68478775]
[1767339295485,3.904154,127.05,127.02,0.68478775]
[1767339300709,3.90009296,127.04,127.01,8.57053276]
[1767339301179,3.90009296,127.04,127.02,0.69753981]
[1767339303290,3.2168399,127.04,127.02,0.69753981]
[1767339304399,34.05197327,127.09,127.02,0.69753981]
[1767339304400,22.24894165,127.09,127.02,11.08928866]
[1767339304690,3.2168399,127.06,127.03,0.69753981]
[1767339304901,3.2168399,127.07,127.03,3.91437971]
[1767339305100,0.68325306,127.06,127.04,0.69753981]
[1767339305478,0.68325306,127.06,127.03,11.78635645]
[1767339305676,0.68325306,127.06,127.03,11.08881664]
[1767339306834,0.68325306,127.06,127.03,11.78635645]
[1767339307592,0.68325306,127.06,127.03,8.56951655]
[1767339307787,0.68325306,127.06,127.03,11.78635645]
[1767339308088,0.68325306,127.06,127.02,7.87253123]
[1767339308303,0.68325306,127.05,127.02,7.87266964]
[1767339309595,0.68325306,127.05,127.02,11.08950954]
[1767339313494,0.68325306,127.05,127.02,7.87266964]
[1767339313700,0.68325306,127.05,127.02,11.08950954]
[1767339316909,0.68325306,127.05,127.02,11.78704935]
[1767339318605,0.68325306,127.05,127.02,10.62865454]
[1767339320108,0.68325306,127.05,127.02,8.57020945]
[1767339320294,0.68325306,127.05,127.02,10.62865454]
[1767339324389,0.68325306,127.05,127.03,2.05844509]
[1767339325083,0.68325306,127.05,127.02,28.2521493]
[1767339325284,0.68325306,127.05,127.03,2.05844509]
[1767339326109,0.68325306,127.05,127.03,9.93006502]
[1767339327098,0.68325306,127.05,127.03,7.87161993]
[1767339332911,0.68325306,127.05,127.03,8.5604853]
[1767339336919,2.73763764,127.06,127.03,8.5604853]
[1767339337100,2.05844509,127.06,127.03,8.5604853]
[1767339337421,0.67919255,127.07,127.04,2.74731046]
[1767339337711,0.67919255,127.07,127.05,0.68886537]
[1767339338524,0.67919255,127.07,127.04,10.61844759]
[1767339339520,0.67919255,127.07,127.05,0.68886537]
[1767339339905,0.67919255,127.07,127.04,7.87113713]
[1767339340101,2.73763764,127.07,127.04,7.87113713]
[1767339340422,2.73763764,127.06,127.03,8.56075658]
[1767339340600,0.67919255,127.05,127.03,8.56075658]
[1767339349610,0.67919255,127.04,127.02,7.87252159]
[1767339349810,0.67919255,127.03,127.02,7.87252159]
[1767339350236,2.05844509,127.04,127.02,7.87252159]
[1767339352241,2.70566435,127.04,127.02,7.87252159]
[1767339354244,2.70566435,127.04,127.01,7.87339579]
[1767339354615,2.70566435,127.04,127.01,8.56226116]
[1767339357434,2.05844509,127.03,127.0,0.70955459]
[1767339357642,2.70566435,127.02,126.99,0.70955459]
[1767339358024,2.70566435,127.02,126.99,8.58361908]
[1767339358231,2.70566435,127.02,126.99,0.70955459]
[1767339358435,0.64721926,127.02,126.99,2.76799968]
[1767339359142,0.64721926,127.02,127.0,7.87400937]
[1767339359624,0.64721926,127.06,127.0,8.58356396]
[1767339359938,2.70566435,127.03,127.0,8.58356396]
[1767339360538,0.64721926,127.03,127.0,8.58356396]
[1767339360731,2.70566435,127.03,127.0,8.58356396]
[1767339366743,2.70566435,127.03,127.0,0.70955459]
[1767339370445,2.70566435,127.02,126.99,0.70955459]
[1767339370629,0.64721926,127.01,126.99,0.70955459]
[1767339371452,0.64721926,127.01,126.97,8.58516066]
[1767339371643,0.64721926,127.0,126.97,2.76799968]
[1767339371834,2.70566435,127.01,126.98,0.70955459]
[1767339372152,2.70566435,127.02,126.98,2.05844509]
[1767339372328,2.70566435,127.02,126.99,0.70955459]
[1767339373240,0.64721926,127.02,126.99,0.70955459]
[1767339373456,2.70566435,127.02,126.99,0.70955459]
[1767339374933,0.64721926,127.02,126.99,2.05844509]
[1767339375146,0.64721926,127.02,127.0,0.70955459]
[1767339377554,2.70566435,127.02,126.99,0.70955459]
[1767339378555,3.86566615,127.01,126.97,11.09428534]
[1767339378756,3.86566615,127.01,126.98,0.70955459]
[1767339378961,3.83566615,127.01,126.98,0.70955459]
[1767339386164,3.86566615,127.01,126.98,0.70955459]
[1767339391675,0.64721926,127.01,126.98,0.70955459]
[1767339391858,3.86566615,127.01,126.98,0.70955459]
[1767339392466,3.21844689,127.01,126.97,7.87583845]
[1767339392651,3.86566615,127.0,126.97,0.72164472]
[1767339392852,3.83566615,127.0,126.97,0.72164472]
[1767339393167,3.21844689,127.0,126.97,0.72164472]
[1767339397076,0.61721926,127.01,126.97,0.72164472]
[1767339397260,3.21844689,127.0,126.97,0.72164472]
[1767339397767,3.83566615,127.01,126.97,0.72164472]
[1767339398070,3.21844689,127.01,126.97,0.72164472]
[1767339398375,0.61721926,127.0,126.97,0.72164472]
[1767339398575,0.58721926,127.0,126.97,0.72164472]
[1767339398952,3.21844689,127.01,126.97,0.72164472]
[1767339400681,3.80566615,127.01,126.97,0.72164472]
[1767339402485,3.21844689,127.0,126.97,0.72164472]
[1767339402693,3.80566615,126.99,126.96,0.72164472]
[1767339402893,3.21844689,126.99,126.96,0.72164472]
[1767339403468,3.80566615,126.98,126.95,0.72164472]
[1767339411201,0.58721926,126.98,126.95,0.72164472]
[1767339411380,3.80566615,126.98,126.95,0.72164472]
[1767339411698,3.80566615,126.98,126.95,8.59874618]
[1767339412901,0.58721926,126.98,126.95,8.59874618]
[1767339413575,0.58721926,126.98,126.96,0.68596355]
[1767339415004,3.21844689,126.99,126.96,0.68596355]
[1767339415204,3.80566615,126.99,126.96,0.68596355]
[1767339415911,3.80566615,126.99,126.95,11.09554835]
[1767339415912,3.21844689,126.98,126.95,0.66122347]
[1767339416198,3.21844689,126.98,126.95,8.53829804]
[1767339418218,3.80566615,126.99,126.95,11.75674493]
[1767339418585,3.80566615,126.99,126.96,0.66122347]
[1767339419424,3.21844689,127.0,126.97,0.66122347]
[1767339422610,14.96721926,127.02,126.97,0.66122347]
[1767339422795,3.21844689,127.0,126.97,0.66122347]
[1767339422994,3.21844689,127.0,126.97,7.87586711]
[1767339423196,3.21844689,127.0,126.98,0.66122347]
[1767339424009,3.21844689,127.01,126.98,0.66122347]
[1767339424426,14.38,127.02,126.98,0.66122347]
[1767339424589,17.59844689,127.02,126.99,0.66122347]
[1767339425105,14.38,127.02,126.99,0.66122347]
[1767339425306,17.59844689,127.02,126.99,0.66122347]
[1767339426513,112.67129253,127.05,126.99,7.87462818]
[1767339426694,3.21844689,127.03,127.0,0.66122347]
[1767339426895,0.58721926,127.05,127.0,0.66122347]
[1767339427200,3.21844689,127.03,127.0,0.66122347]
[1767339428120,3.21844689,127.03,127.0,3.87967036]
[1767339428411,3.21844689,127.03,127.01,0.66122347]
[1767339429407,0.58721926,127.04,127.01,0.66122347]
[1767339429615,3.21844689,127.03,127.01,0.66122347]
[1767339430705,3.80566615,127.04,127.01,0.66122347]
[1767339430913,0.58721926,127.04,127.01,0.66122347]
[1767339431112,3.80566615,127.04,127.01,0.66122347]
[1767339431313,3.21844689,127.04,127.02,0.66122347]
[1767339432114,0.58721926,127.05,127.02,0.66122347]
[1767339432300,3.21844689,127.04,127.02,0.66122347]
[1767339433319,3.21844689,127.03,127.0,7.87393539]
[1767339433501,3.21844689,127.03,127.01,0.66122347]
[1767339433700,3.80566615,127.04,127.01,0.66122347]
[1767339440610,2.64649101,127.04,127.01,0.66122347]
[1767339441731,0.58721926,127.04,127.01,0.66122347]
[1767339441956,2.64649101,127.04,127.01,0.66122347]
[1767339442434,0.58721926,127.04,127.01,0.66122347]
[1767339442619,2.64649101,127.04,127.01,0.66122347]
[1767339444716,19.67492435,127.07,126.96,0.66122347]
[1767339444717,0.58721926,127.01,126.96,0.66122347]
[1767339444921,2.05927175,127.0,126.96,0.66122347]
[1767339445115,0.58721926,127.01,126.97,2.05927175]
[1767339445316,2.05927175,127.01,126.98,0.70454191]
[1767339445631,14.38,127.02,127.0,0.70454191]
[1767339445936,0.58721926,127.03,127.0,0.70454191]
[1767339445937,2.64649101,127.03,127.0,0.70454191]
[1767339446930,2.05927175,127.03,127.0,0.70454191]
[1767339447137,17.02649101,127.04,127.01,0.67963877]
[1767339448834,14.96721926,127.04,127.01,0.67963877]
[1767339449138,14.38,127.04,127.01,0.67963877]
[1767339453838,14.38,127.04,127.01,7.87309585]
[1767339454021,14.38,127.04,127.02,0.67963877]
[1767339454341,2.64649101,127.05,127.02,0.67963877]
[1767339457847,0.58721926,127.05,127.02,0.67963877]
[1767339458141,2.64649101,127.05,127.02,0.67963877]
[1767339459138,2.05927175,127.05,127.02,0.67963877]
[1767339459346,2.64649101,127.05,127.02,0.67963877]
[1767339459645,2.64649101,127.04,127.01,0.67963877]
[1767339472256,0.58721926,127.04,127.01,0.67963877]
[1767339472437,2.64649101,127.04,127.01,0.67963877]
[1767339474357,0.58721926,127.04,127.01,0.67963877]
[1767339474556,2.64649101,127.04,127.01,0.67963877]
[1767339480863,2.64649101,127.03,126.98,0.72170626]
[1767339481047,2.64649101,127.01,126.98,0.72170626]
[1767339484769,2.05927175,127.01,126.98,0.72170626]
[1767339485856,2.64649101,127.01,126.98,0.72170626]
[1767339486080,2.64649101,127.0,126.98,0.72170626]
[1767339486866,0.58721926,126.99,126.96,0.72170626]
[1767339487068,2.64649101,126.99,126.96,0.72170626]
[1767339492395,2.64649101,126.99,126.96,8.5981233]
[1767339494798,2.64649101,126.99,126.96,8.59818158]
[1767339495402,2.64649101,126.98,126.96,0.72170626]
[1767339495599,2.64649101,126.98,126.94,7.87728328]
[1767339495778,2.64649101,126.98,126.95,0.72170626]
[1767339496092,22.25360614,127.01,126.96,0.72170626]
[1767339496292,2.05927175,126.99,126.96,0.72170626]
[1767339496485,2.64649101,126.99,126.96,0.72170626]
[1767339496684,2.64649101,126.99,126.96,8.5981013]
[1767339499502,0.58721926,126.98,126.96,0.72170626]
[1767339499685,2.64649101,126.97,126.93,8.5996974]
[1767339499993,2.64649101,126.97,126.94,0.72170626]
[1767339501793,0.58721926,126.97,126.94,0.72170626]
[1767339501999,2.05927175,126.96,126.94,0.72170626]
[1767339502602,3.22149324,126.96,126.94,0.72170626]
[1767339502992,7.87443819,127.0,126.95,0.72170626]
[1767339503207,3.22149324,126.98,126.95,0.72170626]
[1767339503491,3.8087125,126.99,126.95,0.72170626]
[1767339504094,0.58721926,126.99,126.95,7.87665487]
[1767339504397,3.8087125,126.99,126.96,0.72170626]
[1767339509711,0.58721926,126.99,126.96,0.72170626]
[1767339510007,3.8087125,126.99,126.96,0.72170626]
[1767339510827,3.22149324,126.98,126.96,0.72170626]
[1767339511208,14.38,127.01,126.96,8.59798863]
[1767339511397,3.22149324,127.0,126.97,0.66528146]
[1767339512112,3.22149324,126.99,126.97,0.66528146]
[1767339513717,0.58721926,127.0,126.97,0.66528146]
[1767339513916,3.22149324,126.99,126.97,0.66528146]
[1767339518122,0.58721926,127.0,126.97,0.66528146]
[1767339518424,3.22149324,126.99,126.97,0.66528146]
[1767339518725,0.58721926,127.0,126.97,0.66528146]
[1767339518926,3.8087125,127.0,126.97,0.66528146]
[1767339521223,14.38,127.01,126.97,7.87585476]
[1767339521431,3.22149324,127.0,126.98,0.66528146]
[1767339521632,14.96721926,127.01,126.98,0.66528146]
[1767339521935,18.1887125,127.01,126.98,0.66528146]
[1767339522835,18.1887125,127.01,126.98,8.54051748]
[1767339523638,8.45960558,127.03,126.99,0.66528146]
[1767339523835,3.22149324,127.01,126.99,0.66528146]
[1767339524822,0.58721926,127.02,126.99,0.66528146]
[1767339525023,3.22149324,127.01,126.99,0.66528146]
[1767339528757,0.58721926,127.02,126.99,0.66528146]
[1767339528961,3.22149324,127.01,126.99,0.66528146]
[1767339531163,3.8087125,127.01,126.99,0.66528146]
[1767339531862,3.22149324,127.01,126.99,0.66528146]
[1767339535969,3.8087125,127.0,126.97,8.57992888]
[1767339536148,3.22149324,126.99,126.97,8.57992888]
[1767339536345,3.8087125,127.0,126.97,8.57992888]